fUST/lending_fUST_20250531
["ID","MTS","AMOUNT","RATE_DAILY","PERIOD"]
[363339454,1748681449648,-430.0,0.0002,2]
[363339455,1748681449658,-1408.84,0.0002,2]
[363339456,1748681449667,-190.0,0.0002,4]
[363339457,1748681449677,-190.0,0.0002,4]
[363339458,1748681449686,-190.0,0.0002,4]
[363339459,1748681449696,-1660.58,0.0002,2]
[363339460,1748681449706,-151.0,0.0002,2]
[363339461,1748681449716,-479.68,0.0002,2]
[363339462,1748681449727,-1168.63,0.0002,2]
[363339463,1748681449737,-311.410682,0.0002,2]
[363339464,1748681449747,-3039.695292,0.0002,2]
[363339465,1748681449757,-1662.26,0.0002,2]
[363339466,1748681449767,-311.410682,0.0002,2]
[363339467,1748681449777,-3039.695292,0.0002,2]
[363339468,1748681449786,-1003.07,0.0002,2]
[363339469,1748681449795,-430.0,0.0002,2]
[363339470,1748681449805,-1355.93,0.0002,2]
[363339471,1748681449814,-642.4,0.0002,2]
[363339472,1748681449824,-559.37,0.0002,2]
[363339473,1748681449833,-430.0,0.0002,2]
[363339474,1748681449843,-151.0,0.0002,2]
[363339475,1748681449852,-2124.67,0.0002,2]
[363339476,1748681449862,-555.78,0.0002,2]
[363339477,1748681449871,-151.0,0.0002,2]
[363339478,1748681449881,-430.0,0.0002,2]
[363339479,1748681449890,-430.0,0.0002,2]
[363339480,1748681449900,-430.0,0.0002,2]
[363339481,1748681449910,-737.36,0.0002,2]
[363339482,1748681449919,-151.0,0.0002,2]
[363339483,1748681449928,-564.47,0.0002,2]
[363339484,1748681449938,-4026.22,0.0002,2]
[363339485,1748681449947,-673.14,0.0002,2]
[363339486,1748681449957,-632.98,0.0002,2]
[363339487,1748681449966,-187.07863,0.0002,2]
[363339488,1748681449977,-151.0,0.0002,2]
[363339489,1748681449987,-446.61,0.0002,2]
[363339490,1748681449997,-187.07863,0.0002,2]
[363339491,1748681450007,-4000.0,0.0002,4]
[363339492,1748681450016,-599.24,0.0002,2]
[363339493,1748681450026,-641.18,0.0002,2]
[363339494,1748681450035,-430.0,0.0002,2]
[363339495,1748681450044,-151.0,0.0002,2]
[363339496,1748681450054,-739.54,0.0002,2]
[363339497,1748681450170,-180.649888,0.0002,2]
[363339498,1748681450180,-2133.64399946,0.00020072,2]
[363339499,1748681450190,-823.0,0.0002013,2]
[363339500,1748681450199,-270.75430907,0.00020185,16]
[363339501,1748681450209,-151.0,0.000202,3]
[363339502,1748681450219,-151.0,0.0002021,2]
[363339503,1748681450229,-151.0,0.0002021,2]
[363339504,1748681450239,-151.0,0.0002021,2]
[363339505,1748681450248,-151.0,0.0002021,2]
[363339506,1748681450258,-187.456422,0.0002021,2]
[363339507,1748681450267,-187.456422,0.0002021,2]
[363339508,1748681450277,-176.414694,0.00020219,2]
[363339509,1748681450286,-158.4581234,0.00020219,2]
[363339510,1748681450295,-829.1729851,0.00020219,2]
[363339511,1748681450305,-158.4581234,0.00020219,2]
[363339512,1748681450314,-158.4581234,0.00020219,2]
[363339513,1748681450323,-430.0,0.00020273,2]
[363339514,1748681450332,-454.05,0.00020273,2]
[363339515,1748681450341,-430.0,0.00020273,2]
[363339516,1748681450351,-445.46,0.00020273,2]
[363339517,1748681450360,-430.0,0.00020273,2]
[363339518,1748681450370,-401.532556,0.00020273,2]
[363339519,1748681450380,-401.532556,0.00020273,2]
[363339520,1748681450389,-151.0,0.00020273,2]
[363339521,1748681450400,-618.97,0.00020273,2]
[363339522,1748681450409,-1158.47,0.00020273,2]
[363339523,1748681450419,-430.0,0.00020273,2]
[363339524,1748681450429,-1408.84,0.00020273,2]
[363339525,1748681450438,-1660.58,0.00020273,2]
[363339526,1748681450448,-479.68,0.00020273,2]
[363339527,1748681450457,-1168.63,0.00020273,2]
[363339528,1748681450466,-1662.26,0.00020273,2]
[363339529,1748681450476,-1003.07,0.00020273,2]
[363339530,1748681450485,-1355.93,0.00020273,2]
[363339531,1748681450494,-642.4,0.00020273,2]
[363339532,1748681450504,-430.0,0.00020273,2]
[363339533,1748681450513,-559.37,0.00020273,2]
[363339534,1748681450523,-430.0,0.00020273,2]
[363339535,1748681450533,-2124.67,0.00020273,2]
[363339536,1748681450546,-555.78,0.00020273,2]
[363339537,1748681450556,-430.0,0.00020273,2]
[363339538,1748681450565,-430.0,0.00020273,2]
[363339539,1748681450574,-430.0,0.00020273,2]
[363339540,1748681450585,-737.36,0.00020273,2]
[363339541,1748681450594,-564.47,0.00020273,2]
[363339542,1748681450603,-4026.22,0.00020273,2]
[363339543,1748681450613,-673.14,0.00020273,2]
[363339544,1748681450622,-632.98,0.00020273,2]
[363339545,1748681450632,-446.61,0.00020273,2]
[363339546,1748681450641,-599.24,0.00020273,2]
[363339547,1748681450651,-641.18,0.00020273,2]
[363339548,1748681450660,-430.0,0.00020273,2]
[363339549,1748681450669,-739.54,0.00020273,2]
[363339550,1748681450679,-221.0,0.00020274,3]
[363339551,1748681450689,-166.0,0.00020274,2]
[363339552,1748681450698,-151.0,0.00020313,2]
[363339553,1748681450708,-151.0,0.00020313,2]
[363339554,1748681450718,-2133.64399946,0.00020314,3]
[363339555,1748681450729,-900.0,0.00020356,2]
[363339556,1748681450738,-270.75430907,0.00020373,18]
[363339557,1748681450747,-1000.0,0.00020521,2]
[363339558,1748681450757,-1000.0,0.00020521,2]
[363339559,1748681450766,-1000.0,0.00020521,2]
[363339560,1748681450775,-1000.0,0.00020521,2]
[363339561,1748681450785,-421.21542315,0.00020521,2]
[363339562,1748681450795,-1000.0,0.00020521,2]
[363339563,1748681450804,-1000.0,0.00020521,2]
[363339564,1748681450813,-1004.31260326,0.00020521,2]
[363339565,1748681450822,-1008.86377791,0.00020521,2]
[363339566,1748681450832,-1000.0,0.00020521,2]
[363339567,1748681450841,-1000.0,0.00020521,2]
[363339568,1748681450850,-540.41710014,0.00020521,2]
[363339569,1748681450860,-1000.0,0.00020521,2]
[363339570,1748681450869,-1000.0,0.00020521,2]
[363339571,1748681450878,-525.52033247,0.00020521,2]
[363339572,1748681450887,-1200.0,0.00020521,2]
[363339573,1748681450896,-1000.0,0.00020521,2]
[363339574,1748681450905,-1000.0,0.00020521,2]
[363339575,1748681450914,-1007.04766132,0.00020521,2]
[363339576,1748681450923,-1000.0,0.00020521,2]
[363339577,1748681450932,-1000.0,0.00020521,2]
[363339578,1748681450943,-430.0,0.00020547,2]
[363339579,1748681450952,-454.05,0.00020547,2]
[363339580,1748681450961,-430.0,0.00020547,2]
[363339581,1748681450971,-445.46,0.00020547,2]
[363339582,1748681450980,-430.0,0.00020547,2]
[363339583,1748681450989,-618.97,0.00020547,2]
[363339584,1748681450999,-1158.47,0.00020547,2]
[363339585,1748681451008,-430.0,0.00020547,2]
[363339586,1748681451018,-1408.84,0.00020547,2]
[363339587,1748681451027,-1660.58,0.00020547,2]
[363339588,1748681451037,-479.68,0.00020547,2]
[363339589,1748681451047,-1168.63,0.00020547,2]
[363339590,1748681451056,-1662.26,0.00020547,2]
[363339591,1748681451066,-1003.07,0.00020547,2]
[363339592,1748681451075,-1355.93,0.00020547,2]
[363339593,1748681451085,-642.4,0.00020547,2]
[363339594,1748681451094,-430.0,0.00020547,2]
[363339595,1748681451104,-559.37,0.00020547,2]
[363339596,1748681451113,-2124.67,0.00020547,2]
[363339597,1748681451122,-555.78,0.00020547,2]
[363339598,1748681451132,-430.0,0.00020547,2]
[363339599,1748681451142,-430.0,0.00020547,2]
[363339600,1748681451151,-430.0,0.00020547,2]
[363339601,1748681451162,-737.36,0.00020547,2]
[363339602,1748681451171,-564.47,0.00020547,2]
[363339603,1748681451181,-4026.22,0.00020547,2]
[363339604,1748681451190,-673.14,0.00020547,2]
[363339605,1748681451201,-632.98,0.00020547,2]
[363339606,1748681451211,-446.61,0.00020547,2]
[363339607,1748681451221,-599.24,0.00020547,2]
[363339608,1748681451230,-641.18,0.00020547,2]
[363339609,1748681451239,-430.0,0.00020547,2]
[363339610,1748681451249,-739.54,0.00020547,2]
[363339611,1748681451258,-2133.64399946,0.00020555,3]
[363339612,1748681451267,-270.75430907,0.0002056,19]
[363339613,1748681451276,-8541.62,0.000206,2]
[363339614,1748681451285,-151.0,0.000206,4]
[363339615,1748681451295,-500.0,0.00020604,2]
[363339616,1748681451304,-500.0,0.00020631,2]
[363339617,1748681451313,-500.0,0.00020659,2]
[363339618,1748681451322,-500.0,0.00020686,2]
[363339619,1748681451331,-207.4,0.00020709,2]
[363339621,1748681451340,-5000.0,0.00020709,2]
[363339622,1748681451350,-500.0,0.00020714,2]
[363339623,1748681451359,-281.88264145,0.00020717,2]
[363339624,1748681451369,-500.0,0.00020741,2]
[363339625,1748681451378,-270.75430907,0.00020747,21]
[363339626,1748681451388,-500.0,0.00020768,2]
[363339627,1748681451398,-500.0,0.00020796,2]
[363339628,1748681451407,-2133.64399946,0.00020797,4]
[363339629,1748681451416,-268.46260182,0.00020821,2]
[363339630,1748681451425,-454.05,0.00020821,2]
[363339631,1748681451434,-430.0,0.00020821,2]
[363339632,1748681451445,-445.46,0.00020821,2]
[363339633,1748681451455,-430.0,0.00020821,2]
[363339634,1748681451465,-618.97,0.00020821,2]
[363339635,1748681451475,-1158.47,0.00020821,2]
[363339636,1748681451484,-430.0,0.00020821,2]
[363339637,1748681451493,-1408.84,0.00020821,2]
[363339638,1748681451503,-1660.58,0.00020821,2]
[363339639,1748681451512,-479.68,0.00020821,2]
[363339640,1748681451521,-1168.63,0.00020821,2]
[363339641,1748681451531,-1662.26,0.00020821,2]
[363339642,1748681451542,-1003.07,0.00020821,2]
[363339643,1748681451552,-1355.93,0.00020821,2]
[363339644,1748681451561,-642.4,0.00020821,2]
[363339645,1748681451571,-430.0,0.00020821,2]
[363339646,1748681451581,-559.37,0.00020821,2]
[363339647,1748681451591,-2124.67,0.00020821,2]
[363339648,1748681451601,-555.78,0.00020821,2]
[363339649,1748681451611,-430.0,0.00020821,2]
[363339650,1748681451621,-430.0,0.00020821,2]
[363339651,1748681451631,-430.0,0.00020821,2]
[363339652,1748681451640,-737.36,0.00020821,2]
[363339653,1748681451649,-564.47,0.00020821,2]
[363339654,1748681451659,-4026.22,0.00020821,2]
[363339655,1748681451668,-673.14,0.00020821,2]
[363339656,1748681451679,-632.98,0.00020821,2]
[363339657,1748681451690,-446.61,0.00020821,2]
[363339658,1748681451700,-599.24,0.00020821,2]
[363339659,1748681451709,-641.18,0.00020821,2]
[363339660,1748681451718,-739.54,0.00020821,2]
[363339661,1748681451728,-500.0,0.00020823,2]
[363339662,1748681451737,-269.0,0.00020851,2]
[363339663,1748681451746,-364.3142842,0.00020932,2]
[363339664,1748681451755,-364.3142842,0.00020932,2]
[363339665,1748681451764,-364.3142842,0.00020932,2]
[363339666,1748681451774,-364.3142842,0.00020932,2]
[363339667,1748681451783,-364.3142842,0.00020932,2]
[363339668,1748681451793,-364.3142842,0.00020932,2]
[363339669,1748681451802,-364.3142842,0.00020932,2]
[363339670,1748681451812,-364.3142842,0.00020932,2]
[363339671,1748681451821,-341.3657166,0.00020932,2]
[363339672,1748681451830,-270.75430907,0.00020934,22]
[363339673,1748681451839,-190.0,0.00021,5]
[363339674,1748681451848,-190.0,0.00021,5]
[363339675,1748681451857,-190.0,0.00021,5]
[363339676,1748681451867,-2133.64399946,0.00021038,4]
[363339677,1748681451876,-151.0,0.0002104,2]
[363339678,1748681451885,-158.0947034,0.00021041,2]
[363339679,1748681451894,-593.6840161,0.00021052,2]
[363339680,1748681451903,-785.67556329,0.00021068,2]
[363339681,1748681451912,-1500.0,0.00021068,2]
[363339682,1748681451921,-1800.0,0.00021068,2]
[363339683,1748681451931,-1500.0,0.00021068,2]
[363339684,1748681451939,-1536.43297428,0.00021068,2]
[363339685,1748681451948,-1500.0,0.00021068,2]
[363339686,1748681451957,-151.0,0.0002109,2]
[363339687,1748681451967,-151.0,0.0002109,2]
[363339688,1748681451977,-151.0,0.00021095,2]
[363339689,1748681451985,-454.05,0.00021095,2]
[363339690,1748681451995,-430.0,0.00021095,2]
[363339691,1748681452005,-445.46,0.00021095,2]
[363339692,1748681452015,-430.0,0.00021095,2]
[363339693,1748681452025,-618.97,0.00021095,2]
[363339694,1748681452034,-1158.47,0.00021095,2]
[363339695,1748681452044,-430.0,0.00021095,2]
[363339696,1748681452053,-1408.84,0.00021095,2]
[363339697,1748681452063,-1660.58,0.00021095,2]
[363339698,1748681452072,-479.68,0.00021095,2]
[363339699,1748681452081,-1168.63,0.00021095,2]
[363339700,1748681452091,-1662.26,0.00021095,2]
[363339701,1748681452100,-1003.07,0.00021095,2]
[363339702,1748681452109,-1355.93,0.00021095,2]
[363339703,1748681452118,-642.4,0.00021095,2]
[363339704,1748681452128,-559.37,0.00021095,2]
[363339705,1748681452138,-2124.67,0.00021095,2]
[363339706,1748681452148,-555.78,0.00021095,2]
[363339707,1748681452157,-430.0,0.00021095,2]
[363339708,1748681452166,-298.63612072,0.00021095,2]
[363339709,1748681452176,-430.0,0.00021095,2]
[363339710,1748681452185,-737.36,0.00021095,2]
[363339711,1748681452194,-564.47,0.00021095,2]
[363339712,1748681452204,-4026.22,0.00021095,2]
[363339713,1748681452213,-673.14,0.00021095,2]
[363339714,1748681452222,-632.98,0.00021095,2]
[363339715,1748681452232,-446.61,0.00021095,2]
[363339716,1748681452241,-599.24,0.00021095,2]
[363339717,1748681452251,-641.18,0.00021095,2]
[363339718,1748681452260,-739.54,0.00021095,2]
[363339719,1748681452269,-315.33249,0.000211,2]
[363339720,1748681452279,-315.33249,0.000211,2]
[363339721,1748681452288,-600.0,0.0002112,2]
[363339722,1748681452297,-270.75430907,0.00021122,23]
[363339723,1748681452307,-151.0,0.0002115,2]
[363339724,1748681452316,-151.0,0.0002115,2]
[363339725,1748681452424,-151.0,0.0002115,2]
[363339726,1748681452434,-198.80557612,0.000212,6]
[363339727,1748681452444,-2367.24703584,0.0002123,2]
[363339728,1748681452454,-155.0,0.0002123,2]
[363339729,1748681452463,-157.5499743,0.00021233,2]
[363339730,1748681452473,-164.36045127,0.00021233,2]
[363339731,1748681452482,-157.5499743,0.00021233,2]
[363339732,1748681452491,-157.5499743,0.00021233,2]
[363339733,1748681452500,-3000.0,0.0002124,2]
[363339734,1748681452510,-246.575222,0.0002124,2]
[363339735,1748681452519,-246.575222,0.0002124,2]
[363339736,1748681452528,-575.30694928,0.00021247,2]
[363339737,1748681452539,-500.0,0.00021247,2]
[363339738,1748681452550,-3000.0,0.0002125,2]
[363339739,1748681452559,-5000.0,0.00021257,2]
[363339740,1748681452570,-3000.0,0.0002126,2]
[363339741,1748681452581,-3000.0,0.0002127,2]
[363339742,1748681452590,-187.07863,0.0002127,2]
[363339743,1748681452599,-151.0,0.0002127,2]
[363339744,1748681452609,-187.07863,0.0002127,2]
[363339745,1748681452620,-2133.64399946,0.00021279,5]
[363339746,1748681452628,-3000.0,0.0002128,2]
[363339747,1748681452636,-500.0,0.00021285,2]
[363339748,1748681452644,-500.0,0.00021289,2]
[363339749,1748681452652,-3000.0,0.0002129,2]
[363339750,1748681452660,-3000.0,0.000213,2]
[363339751,1748681452668,-270.75430907,0.00021309,25]
[363339752,1748681452676,-3000.0,0.0002131,2]
[363339753,1748681452685,-3000.0,0.0002132,2]
[363339754,1748681452695,-3000.0,0.0002133,2]
[363339755,1748681452704,-3000.0,0.0002134,2]
[363339756,1748681452714,-169.220262,0.0002134,2]
[363339757,1748681452724,-169.220262,0.0002134,2]
[363339758,1748681452734,-151.0,0.0002134,2]
[363339759,1748681452743,-600.0,0.0002134,2]
[363339760,1748681452752,-250.0,0.00021343,2]
[363339761,1748681452762,-3000.0,0.0002135,2]
[363339762,1748681452771,-3000.0,0.0002136,2]
[363339763,1748681452780,-454.05,0.00021369,2]
[363339764,1748681452790,-430.0,0.00021369,2]
[363339765,1748681452799,-445.46,0.00021369,2]
[363339766,1748681452808,-430.0,0.00021369,2]
[363339767,1748681452818,-618.97,0.00021369,2]
[363339768,1748681452827,-1158.47,0.00021369,2]
[363339769,1748681452837,-522.69770357,0.00021369,2]
[363339770,1748681452846,-1408.84,0.00021369,2]
[363339771,1748681452856,-1660.58,0.00021369,2]
[363339772,1748681452866,-151.0,0.00021369,2]
[363339773,1748681452876,-479.68,0.00021369,2]
[363339774,1748681452888,-1168.63,0.00021369,2]
[363339775,1748681452897,-3039.695292,0.00021369,2]
[363339776,1748681452908,-1662.26,0.00021369,2]
[363339777,1748681452917,-3039.695292,0.00021369,2]
[363339778,1748681452927,-1003.07,0.00021369,2]
[363339779,1748681452937,-1355.93,0.00021369,2]
[363339780,1748681452947,-642.4,0.00021369,2]
[363339781,1748681452957,-559.37,0.00021369,2]
[363339782,1748681452967,-151.0,0.00021369,2]
[363339783,1748681452978,-2124.67,0.00021369,2]
[363339784,1748681452987,-555.78,0.00021369,2]
[363339785,1748681452996,-152.339554,0.00021369,2]
[363339786,1748681453005,-430.0,0.00021369,2]
[363339787,1748681453015,-299.27,0.00021369,2]
[363339788,1748681453024,-737.36,0.00021369,2]
[363339789,1748681453033,-564.47,0.00021369,2]
[363339790,1748681453044,-4026.22,0.00021369,2]
[363339791,1748681453054,-673.14,0.00021369,2]
[363339792,1748681453063,-632.98,0.00021369,2]
[363339793,1748681453073,-446.61,0.00021369,2]
[363339794,1748681453083,-599.24,0.00021369,2]
[363339795,1748681453092,-641.18,0.00021369,2]
[363339796,1748681453101,-739.54,0.00021369,2]
[363339797,1748681453111,-3000.0,0.0002137,2]
[363339798,1748681453120,-311.410682,0.0002137,2]
[363339799,1748681453130,-311.410682,0.0002137,2]
[363339800,1748681453140,-151.0,0.0002137,2]
[363339801,1748681453149,-229.16983583,0.0002138,2]
[363339802,1748681453169,-379.50160881,0.0002138,2]
[363339803,1748681453214,-151.0,0.0002127,2]
[363339804,1748681453226,-1165.39270049,0.0002138,2]
[363339805,1748681453237,-380.2112442,0.0002138,2]
[363339806,1748681453249,-845.72461067,0.0002138,2]
[363339807,1748681453259,-151.0,0.0002138,2]
[363339808,1748681453269,-151.0,0.0002138,2]
[363339809,1748681453279,-151.0,0.0002138,2]
[363339810,1748681453288,-1517.76863416,0.0002139,2]
[363339811,1748681453300,-527.69100549,0.0002139,2]
[363339812,1748681453311,-954.54036035,0.0002139,2]
[363339813,1748681453321,-59.44323965,0.000214,2]
[363339814,1748681453332,-2940.55676035,0.000214,2]
[363339815,1748681453342,-1885.25,0.000214,2]
[363339816,1748681453352,-151.0,0.000214,2]
[363339817,1748681453362,-5637.61254042,0.000214,2]
[363339818,1748681453371,-3000.0,0.0002141,2]
[363339819,1748681453381,-151.0,0.0002141,2]
[363339820,1748681453391,-103.00531811,0.0002141,2]
[363339821,1748681453402,-47.99468189,0.0002141,2]
[363339822,1748681453411,-151.0,0.0002141,2]
[363339823,1748681453421,-132.00531811,0.0002141,2]
[363339824,1748681453630,-500.0,0.00016437,2]
[363339825,1748681453639,-181.88740363,0.00016437,2]
[363339826,1748681453649,-403.20539944,0.00016437,2]
[363339827,1748681453668,-96.79460056,0.00016437,2]
[363339828,1748681453679,-500.0,0.00016437,2]
[363339829,1748681453688,-500.0,0.00016437,2]
[363339830,1748681453697,-260.32524056,0.00016437,2]
[363339831,1748681453706,-500.0,0.00016437,2]
[363339832,1748681453716,-500.0,0.00016437,2]
[363339833,1748681453725,-445.93595448,0.00016437,2]
[363339834,1748681453735,-151.73571759,0.00016437,2]
[363339835,1748681453749,-45.84435095,0.00016437,2]
[363339836,1748681453760,-216.55933451,0.00016437,2]
[363339837,1748681453770,-288.33404645,0.00016438,2]
[363339838,1748681453868,-33.23397965,0.00016273,2]
[363339839,1748681620726,-5000.0,0.0001611,2]
[363339840,1748681620748,-127.63006156,0.00016273,2]
[363339841,1748681620771,-300.0,0.00016436,2]
[363339842,1748681620793,-290.12745458,0.00016437,2]
[363339843,1748681620814,-394.98746746,0.00016437,2]
[363339844,1748681620836,-500.0,0.00016437,2]
[363339845,1748681620858,-500.0,0.00016437,2]
[363339846,1748681620882,-500.0,0.00016437,2]
[363339847,1748681620905,-500.0,0.00016437,2]
[363339848,1748681620928,-500.0,0.00016437,2]
[363339849,1748681620949,-472.09618332,0.00016437,2]
[363339850,1748681620971,-232.27467978,0.00016437,2]
[363339851,1748681620993,-597.85320696,0.00016437,2]
[363339852,1748681621014,-141.66595355,0.00016438,2]
[363339853,1748681621035,-430.0,0.00016438,2]
[363339854,1748681621195,-506.62,0.00016438,2]
[363339855,1748681621220,-430.0,0.00016438,2]
[363339856,1748681621241,-430.0,0.00016438,2]
[363339857,1748681621264,-430.0,0.00016438,2]
[363339858,1748681621287,-609.74,0.00016438,2]
[363339859,1748681621308,-572.39129115,0.00016438,2]
[363339860,1748681621330,-430.0,0.00016438,2]
[363339861,1748681621354,-430.0,0.00016438,2]
[363339862,1748681621377,-276.90369772,0.00016438,2]
[363339863,1748681621404,-430.0,0.00016438,2]
[363339864,1748681621428,-430.0,0.00016438,2]
[363339865,1748681621451,-430.0,0.00016438,2]
[363339866,1748681621475,-452.34,0.00016438,2]
[363339867,1748681621498,-430.0,0.00016438,2]
[363339868,1748681621522,-430.0,0.00016438,2]
[363339869,1748681621546,-430.0,0.00016438,2]
[363339870,1748681621569,-430.0,0.00016438,2]
[363339871,1748681621592,-430.0,0.00016438,2]
[363339872,1748681621617,-430.0,0.00016438,2]
[363339873,1748681621639,-275.77616446,0.00016438,2]
[363339874,1748681621662,-430.0,0.00016438,2]
[363339875,1748681621690,-430.0,0.00016438,2]
[363339876,1748681621712,-430.0,0.00016438,2]
[363339877,1748681621735,-430.0,0.00016438,2]
[363339878,1748681621758,-430.0,0.00016438,2]
[363339879,1748681621782,-430.0,0.00016438,2]
[363339880,1748681621804,-430.0,0.00016438,2]
[363339881,1748681621826,-430.0,0.00016438,2]
[363339882,1748681621848,-430.0,0.00016438,2]
[363339883,1748681621870,-430.0,0.00016438,2]
[363339884,1748681621894,-430.0,0.00016438,2]
[363339885,1748681621917,-435.92375421,0.00016438,2]
[363339886,1748681621940,-430.0,0.00016438,2]
[363339887,1748681621963,-203.67008525,0.00016438,2]
[363339889,1748681814587,161.441727,0.00013699,2]
[363339890,1748682179630,1603.0,0.00021918,60]
[363339891,1748682357128,-613.3194952,0.000151,2]
[363339892,1748682357150,-300.0,0.0001529,2]
[363339893,1748682357170,-300.0,0.00015291,2]
[363339894,1748682357192,-1200.0,0.00015291,2]
[363339895,1748682357214,-300.0,0.00015291,2]
[363339896,1748682357234,-300.0,0.00015291,2]
[363339897,1748682357255,-300.0,0.00015291,2]
[363339898,1748682357278,-10000.0,0.00015292,2]
[363339899,1748682357299,-278.78023622,0.00015479,2]
[363339900,1748682357321,-168.19204084,0.00015856,2]
[363339901,1748682357343,-13830.20407706,0.00015958,2]
[363339902,1748682428163,-300.0,0.00015957,2]
[363339903,1748682428189,-905.57238953,0.00015958,2]
[363339904,1748682451088,-991.92278071,0.00015958,2]
[363339905,1748682452136,-7947.90594428,0.00015958,2]
[363339906,1748682553110,-1224.39480842,0.00015958,2]
[363339907,1748682553133,-186.74524367,0.00016338,2]
[363339908,1748682553156,-300.0,0.00016436,2]
[363339909,1748682553180,-500.0,0.00016437,2]
[363339910,1748682553201,-500.0,0.00016437,2]
[363339911,1748682553224,-500.0,0.00016437,2]
[363339912,1748682553247,-348.03225232,0.00016437,2]
[363339913,1748682553270,-500.0,0.00016437,2]
[363339914,1748682553292,-500.0,0.00016437,2]
[363339915,1748682553314,-500.0,0.00016437,2]
[363339916,1748682553337,-500.0,0.00016437,2]
[363339917,1748682553360,-500.0,0.00016437,2]
[363339918,1748682553382,-500.0,0.00016437,2]
[363339919,1748682553404,-467.49613808,0.00016437,2]
[363339920,1748682553426,-500.0,0.00016437,2]
[363339921,1748682553449,-500.0,0.00016437,2]
[363339922,1748682553472,-400.0,0.00016437,2]
[363339923,1748682553498,-160.0,0.00016437,2]
[363339924,1748682553519,-483.02533338,0.00016437,2]
[363339935,1748682632028,-167.26814173,0.00015945,2]
[363339936,1748682632038,-516.97466662,0.00016437,2]
[363339937,1748682632048,-300.0,0.00016437,2]
[363339938,1748682632057,-1200.0,0.00016437,2]
[363339939,1748682632067,-300.0,0.00016437,2]
[363339940,1748682632077,-300.0,0.00016437,2]
[363339941,1748682632086,-300.0,0.00016437,2]
[363339942,1748682632096,-430.0,0.00016438,2]
[363339943,1748682632105,-371.62460418,0.00016438,2]
[363339944,1748682632115,-430.0,0.00016438,2]
[363339945,1748682632124,-453.05177797,0.00016438,2]
[363339946,1748682632134,-400.0,0.00016438,2]
[363339947,1748682632144,-300.0,0.00016438,2]
[363339948,1748682632153,-516.53602936,0.00016438,2]
[363339949,1748682632163,-402.03573371,0.00016438,2]
[363339950,1748682632172,-430.0,0.00016438,2]
[363339951,1748682632181,-409.11422479,0.00016438,2]
[363339952,1748682632192,-430.0,0.00016438,2]
[363339953,1748682632201,-430.0,0.00016438,2]
[363339954,1748682632211,-430.0,0.00016438,2]
[363339955,1748682632219,-430.0,0.00016438,2]
[363339956,1748682632229,-430.0,0.00016438,2]
[363339957,1748682632238,-408.21376622,0.00016438,2]
[363339958,1748682632249,-430.0,0.00016438,2]
[363339959,1748682632259,-442.00420122,0.00016438,2]
[363339960,1748682632269,-430.0,0.00016438,2]
[363339961,1748682632278,-430.0,0.00016438,2]
[363339962,1748682632287,-430.0,0.00016438,2]
[363339963,1748682632296,-409.96684926,0.00016438,2]
[363339964,1748682632306,-430.0,0.00016438,2]
[363339965,1748682632315,-451.57756083,0.00016438,2]